bitfinex-derivatives/quotes_SOLF0:USTF0_20240904
["timestamp","ask_amount","ask_price","bid_price","bid_amount"]
[1725484173498,3.7305,134.04,134.01,3.7311]
[1725484173804,11.7505,134.04,134.01,3.7311]
[1725484174394,3.7305,134.04,134.01,3.7311]
[1725484174703,11.7505,134.04,134.01,3.7311]
[1725484176803,3.7307,134.03,134.01,3.7311]
[1725484179808,3.7307,134.03,134.0,3.78276279]
[1725484180506,3.7307,134.03,134.01,3.7312]
[1725484186904,3.7307,134.03,134.0,1.44186279]
[1725484186905,8.02,134.03,134.0,1.44186279]
[1725484187510,11.7508,134.03,134.0,5.17336279]
[1725484191609,3.7309,134.02,134.0,5.17336279]
[1725484193112,3.7309,134.02,134.0,1.44186279]
[1725484195012,3.7312,134.01,134.0,1.44186279]
[1725484197609,11.7512,134.01,134.0,0.05156279]
[1725484212422,3.7312,134.01,134.0,0.05156279]
[1725484218829,11.7512,134.01,134.0,0.05156279]
[1725484231144,37.3262,134.11,134.0,8.07156279]
[1725484231446,8.02,134.04,133.98,8.02]
[1725484231641,11.7504,134.04,134.0,0.04832785]
[1725484231842,11.7504,134.04,134.01,3.7312]
[1725484232148,8.02,134.04,134.01,3.7312]
[1725484232945,8.02,134.04,134.02,3.7308]
[1725484235644,15.55169737,134.05,134.02,3.7308]
[1725484236647,8.02,134.05,134.02,3.7308]
[1725484241052,8.02,134.05,134.03,3.7306]
[1725484243451,3.73,134.06,134.03,3.7306]
[1725484243755,8.02,134.05,134.03,3.77925114]
[1725484244152,3.73,134.06,134.03,3.77925114]
[1725484244456,8.02,134.05,134.03,3.77925114]
[1725484246248,160.80311162,134.14,134.03,0.04865114]
[1725484246249,3.7292,134.09,134.03,0.04865114]
[1725484246458,3.7292,134.09,134.05,0.05421593]
[1725484246756,8.02,134.08,134.05,0.05421593]
[1725484248261,8.02,134.08,134.06,3.7297]
[1725484248449,8.02,134.08,134.05,0.05421593]
[1725484248653,8.02,134.06,134.05,0.05421593]
[1725484249953,11.7498,134.06,134.05,0.05421593]
[1725484252560,8.02,134.06,134.05,0.05421593]
[1725484254460,11.7498,134.06,134.05,0.05421593]
[1725484259163,8.02,134.06,133.9,226.0]
[1725484259367,8.02,133.98,133.94,1.4029]
[1725484259762,11.7522,133.98,133.94,1.4029]
[1725484260263,0.04762461,133.97,133.95,0.0570507]
[1725484260865,0.04762461,133.97,133.95,3.7898507]
[1725484261962,0.04762461,133.97,133.96,3.7326]
[1725484263866,0.04762461,133.97,133.95,0.0570507]
[1725484264172,8.06762461,133.97,133.95,3.7899507]
[1725484273367,0.04762461,133.97,133.95,3.7899507]
[1725484278973,8.06762461,133.97,133.95,3.7899507]
[1725484281174,11.80002461,133.97,133.95,0.0570507]
[1725484281375,0.04762461,133.97,133.95,0.0570507]
[1725484281569,8.02,133.96,133.95,0.0570507]
[1725484282670,8.02,133.96,133.91,103.37626176]
[1725484282671,8.02,133.96,133.91,101.97626176]
[1725484282871,0.04762461,133.97,133.91,100.54296176]
[1725484283469,8.02,133.94,133.91,100.54296176]
[1725484283672,3.78716498,133.94,133.91,104.32915676]
[1725484283874,8.02,133.93,133.91,104.32915676]
[1725484284267,11.7535,133.93,133.91,104.32915676]
[1725484284874,11.7535,133.93,133.91,100.59525676]
[1725484287882,8.02,133.92,133.91,100.59525676]
[1725484288479,8.02,133.92,133.91,0.052295]
[1725484288480,11.7537,133.92,133.91,0.052295]
[1725484288978,11.7554,133.86,133.83,3.736]
[1725484289284,11.7554,133.86,133.8,10.7142]
[1725484289285,8.02,133.86,133.8,10.7142]
[1725484289486,8.02,133.86,133.84,3.7359]
[1725484289978,11.7557,133.85,133.84,0.05734389]
[1725484290180,8.02,133.85,133.8,1.3178]
[1725484290379,8.02,133.81,133.77,5.2238377]
[1725484290575,8.02,133.81,133.78,3.7373]
[1725484291384,8.07465012,133.81,133.78,3.79089505]
[1725484292181,11.81145012,133.81,133.78,0.05359505]
[1725484296184,0.05465012,133.81,133.78,11.81119505]
[1725484296387,0.05465012,133.81,133.78,3.79119505]
[1725484298401,3.79155012,133.81,133.78,3.79119505]
[1725484301295,8.02,133.8,133.78,3.79119505]
[1725484302907,11.7571,133.8,133.78,0.05359505]
[1725484305212,8.02,133.8,133.78,3.79119505]
[1725484306599,8.02,133.79,133.78,3.79119505]
[1725484306802,8.02,133.79,133.78,0.05359505]
[1725484307912,11.7573,133.79,133.78,0.05359505]
[1725484318122,3.7379,133.78,133.75,3.7383]
[1725484318417,8.02,133.76,133.75,3.7383]
[1725484318619,8.02,133.76,133.73,100.81176581]
[1725484318818,8.02,133.74,133.73,100.81176581]
[1725484322527,11.7587,133.74,133.72,0.05244054]
[1725484322735,11.74756386,133.73,133.72,0.05244054]
[1725484322922,8.02,133.73,133.72,0.05244054]
[1725484324029,11.759,133.73,133.72,0.05244054]
[1725484330734,8.02,133.73,133.72,0.05244054]
[1725484331035,7.47384292,133.74,133.72,0.05244054]
[1725484331234,11.759,133.73,133.72,0.05244054]
[1725484334934,3.7394,133.72,133.7,3.7396]
[1725484335235,8.02,133.71,133.69,3.74]
[1725484335837,8.07186884,133.71,133.69,3.79358962]
[1725484336734,8.07186884,133.71,133.7,3.7399]
[1725484351856,0.05186884,133.71,133.7,3.7399]
[1725484352550,8.07186884,133.71,133.7,3.7399]
[1725484355866,2.9092,133.79,133.74,3.7385]
[1725484355867,2.6919,133.79,133.74,3.7385]
[1725484356159,8.02,133.76,133.71,1.3231]
[1725484356553,8.02,133.76,133.74,3.7385]
[1725484356863,8.02,133.75,133.71,1.3231]
[1725484357058,0.04738189,133.75,133.73,3.739]
[1725484357259,8.02,133.74,133.73,3.739]
[1725484358461,8.02,133.74,133.72,0.05049057]
[1725484358664,8.02,133.73,133.72,0.05049057]
[1725484359166,8.02,133.73,133.72,3.78979057]
[1725484382089,8.02,133.73,133.72,0.05049057]
[1725484382383,2.9625,133.79,133.67,1.3979]
[1725484382681,8.02,133.72,133.67,1.3979]
[1725484383084,8.02,133.72,133.7,3.7396]
[1725484383285,8.07500198,133.72,133.7,3.79116515]
[1725484385688,8.07500198,133.72,133.71,3.7396]
[1725484387390,8.07500198,133.72,133.7,3.79126515]
[1725484387589,8.02,133.71,133.7,3.79126515]
[1725484387991,0.05500198,133.72,133.71,3.7396]
[1725484388291,8.07500198,133.72,133.71,3.7396]
[1725484391094,11.81450198,133.72,133.7,0.05156515]
[1725484391292,8.02,133.71,133.7,0.05156515]
[1725484400500,11.7596,133.71,133.7,0.05156515]
[1725484409614,8.02,133.71,133.7,0.05156515]
[1725484416216,11.7596,133.71,133.7,0.05156515]
[1725484425220,3.7396,133.71,133.7,0.05156515]
[1725484425516,0.05500198,133.72,133.7,0.05156515]
[1725484425711,8.07500198,133.72,133.7,0.05156515]
[1725484425910,8.07500198,133.72,133.7,3.79126515]
[1725484426316,8.02,133.71,133.7,0.05156515]
[1725484426810,11.7596,133.71,133.7,0.05156515]
[1725484431120,3.74,133.7,133.67,3.7406]
[1725484431425,8.02,133.68,133.67,3.7406]
[1725484434222,8.02,133.68,133.66,3.7947438]
[1725484434525,8.02,133.67,133.66,3.7947438]
[1725484435628,8.02,133.67,133.66,0.0539438]
[1725484444828,11.7607,133.67,133.66,0.0539438]
[1725484445629,3.7412,133.66,133.61,1.3824]
[1725484445830,8.02,133.64,133.61,1.3824]
[1725484446230,8.02,133.62,133.61,1.3824]
[1725484447432,8.02,133.62,133.61,5.1246]
[1725484448033,0.05338726,133.63,133.61,5.1246]
[1725484448235,8.07338726,133.63,133.61,5.1246]
[1725484452523,8.07338726,133.63,133.61,3.7422]
[1725484452731,8.02,133.62,133.61,3.7422]
[1725484455137,8.02,133.62,133.6,1.38371538]
[1725484455138,8.02,133.62,133.6,0.05521538]
[1725484455339,8.02,133.61,133.6,0.05521538]
[1725484455838,3.7423,133.62,133.6,0.05521538]
[1725484456053,8.02,133.62,133.6,0.05521538]
[1725484456251,8.02,133.62,133.6,3.74505895]
[1725484456452,8.02,133.62,133.6,0.05521538]
[1725484457149,8.02,133.62,133.6,3.79771538]
[1725484457450,8.02,133.62,133.6,3.7521692]
[1725484458155,8.02,133.62,133.61,3.7424]
[1725484458359,8.02,133.62,133.6,3.7521692]
[1725484459256,8.02,133.62,133.6,7.4946692]
[1725484460154,8.02,133.61,133.6,0.05521538]
[1725484463457,0.05338726,133.63,133.61,3.7422]
[1725484463657,8.07338726,133.63,133.6,0.05521538]
[1725484463857,8.02,133.61,133.6,0.05521538]
[1725484464058,8.02,133.61,133.6,3.79791538]
[1725484466357,0.05338726,133.63,133.61,3.7423]
[1725484466660,8.02,133.62,133.61,3.7423]
[1725484467957,0.05338726,133.63,133.61,3.7423]
[1725484468260,0.05338726,133.63,133.6,0.05521538]
[1725484468261,8.07338726,133.63,133.6,0.05521538]
[1725484468454,8.07338726,133.63,133.6,3.73448184]
[1725484468651,8.07338726,133.63,133.62,3.7421]
[1725484468968,0.05338726,133.63,133.62,3.7421]
[1725484477656,8.07338726,133.63,133.62,3.7421]
[1725484487770,8.07338726,133.63,133.62,3.7421]
[1725484488672,0.05338726,133.63,133.62,3.7421]
[1725484488872,8.07338726,133.63,133.62,3.7421]
[1725484500083,0.05338726,133.63,133.62,3.7421]
[1725484504177,1.4062,133.7,133.65,3.7411]
[1725484504381,8.02,133.67,133.61,1.3587]
[1725484505283,8.02,133.67,133.65,3.7411]
[1725484505483,8.07172318,133.67,133.65,3.7411]
[1725484509890,8.07172318,133.67,133.66,3.741]
[1725484511388,0.05172318,133.67,133.66,3.741]
[1725484511691,37.28873426,133.76,133.66,8.02]
[1725484511886,37.28873426,133.76,133.69,8.02]
[1725484512084,37.28873426,133.76,133.71,8.02]
[1725484512293,20.95870811,133.76,133.74,3.7385]
[1725484512488,8.02,133.77,133.74,3.7385]
[1725484512694,8.07657098,133.77,133.74,3.7944954]
[1725484513187,0.05657098,133.77,133.74,0.0559954]
[1725484514392,0.05657098,133.77,133.75,3.7382]
[1725484514588,8.07657098,133.77,133.75,3.7382]
[1725484515587,8.07657098,133.77,133.75,3.7385]
[1725484516086,8.07657098,133.77,133.76,3.7382]
[1725484516795,0.05657098,133.77,133.76,3.7382]
[1725484521293,0.05657098,133.77,133.75,3.7384]
[1725484522095,0.05657098,133.77,133.76,3.7382]
[1725484528903,0.05657098,133.77,133.75,3.7383]
[1725484529099,0.05657098,133.77,133.74,0.0559954]
[1725484531405,0.05657098,133.77,133.75,3.7384]
[1725484539309,0.05657098,133.77,133.76,3.7382]
[1725484540513,0.05657098,133.77,133.76,11.7582]
[1725484554431,8.02,133.85,133.8,3.7368]
[1725484555225,8.02,133.85,133.81,0.05549533]
[1725484555226,3.79322758,133.84,133.81,0.05549533]
[1725484555627,3.79322758,133.84,133.81,3.79229533]
[1725484557322,11.7565,133.83,133.81,0.05549533]
[1725484557526,8.02,133.82,133.81,0.05549533]
[1725484558026,11.7565,133.82,133.81,0.05549533]
[1725484560330,3.7372,133.8,133.75,9.4061]
[1725484560533,3.7372,133.8,133.73,5.10524686]
[1725484560534,8.02,133.78,133.73,5.10524686]
[1725484561131,11.7576,133.78,133.74,3.7386]
[1725484561336,11.7576,133.78,133.75,0.05227376]
[1725484561635,0.04950553,133.77,133.75,0.05227376]
[1725484562834,0.04950553,133.77,133.75,3.79067376]
[1725484563143,0.04950553,133.77,133.75,0.05227376]
[1725484564144,0.04950553,133.77,133.75,3.79057376]
[1725484571341,11.7582,133.76,133.75,0.05227376]
[1725484571944,0.04950553,133.77,133.7,102.41972748]
[1725484571945,8.02,133.74,133.7,106.15942748]
[1725484572745,0.0545543,133.73,133.71,0.05443034]
[1725484573347,3.7935543,133.73,133.71,0.05443034]
[1725484575541,11.7593,133.72,133.71,0.05443034]
[1725484576943,8.02,133.72,133.66,3.7409]
[1725484577140,8.02,133.69,133.66,3.7409]
[1725484577751,11.7604,133.69,133.66,3.7409]
[1725484577942,11.81075558,133.69,133.66,0.056615]
[1725484578846,3.7405,133.68,133.66,0.056615]
[1725484582147,3.7407,133.67,133.66,0.056615]
[1725484582548,11.7607,133.67,133.66,0.056615]
[1725484582751,2.29457117,133.67,133.66,17.33055434]
[1725484582942,0.05035558,133.69,133.66,17.33055434]
[1725484583139,0.05035558,133.69,133.67,17.27393934]
[1725484583346,8.02,133.68,133.66,0.056615]
[1725484583647,8.02,133.68,133.67,9.72154236]
[1725484584251,11.7604,133.68,133.67,15.24228332]
[1725484585048,6.70856295,133.68,133.67,15.24228332]
[1725484586953,3.7404,133.68,133.67,15.24228332]
[1725484588457,3.79055558,133.69,133.67,15.24228332]
[1725484588752,3.79055558,133.69,133.68,15.24228332]
[1725484589550,3.79055558,133.69,133.66,3.797515]
[1725484590961,0.05035558,133.69,133.68,3.7404]
[1725484607054,3.7383,133.76,133.72,3.7393]
[1725484607255,8.02,133.8,133.69,1.4274]
[1725484607459,3.79105259,133.79,133.74,8.02]
[1725484608263,3.79105259,133.79,133.75,3.78783902]
[1725484608264,0.05243189,133.78,133.75,3.78783902]
[1725484608467,0.05243189,133.78,133.75,0.04943902]
[1725484609358,0.05243189,133.78,133.76,3.7382]
[1725484610768,0.05243189,133.78,133.77,3.7379]
[1725484612869,0.05243189,133.78,133.75,0.04943902]
[1725484613868,0.05243189,133.78,133.75,3.78773902]
[1725484614672,3.79003189,133.78,133.75,3.78773902]
[1725484614866,0.05243189,133.78,133.75,0.04943902]
[1725484615166,8.02,133.77,133.75,0.04943902]
[1725484615372,11.758,133.77,133.75,0.04943902]
[1725484625271,11.7582,133.76,133.75,0.04943902]
[1725484643586,3.7382,133.76,133.75,0.04943902]
[1725484643792,8.07243189,133.78,133.75,0.04943902]
[1725484645492,3.738,133.77,133.75,0.04943902]
[1725484646787,3.738,133.77,133.75,3.78783902]
[1725484649492,3.79013189,133.78,133.76,3.7382]
[1725484649688,0.05243189,133.78,133.76,3.7382]
[1725484649894,0.05243189,133.78,133.75,0.04943902]
[1725484650097,0.05243189,133.78,133.77,3.7379]
[1725484657900,3.737,133.81,133.78,3.7374]
[1725484658911,3.79012543,133.81,133.78,3.78951373]
[1725484664320,3.79012543,133.81,133.73,32.08]
[1725484664321,8.02,133.79,133.69,3.80206386]
[1725484664516,8.02,133.75,133.7,1.3656]
[1725484664715,11.8484988,133.75,133.7,1.3656]
[1725484664922,3.7388,133.74,133.71,3.7394]
[1725484665313,3.7388,133.74,133.71,3.79141632]
[1725484665513,3.78899174,133.74,133.71,3.79141632]
[1725484682337,3.7391,133.73,133.71,3.79141632]
[1725484684237,3.7391,133.73,133.71,0.05201632]
[1725484685240,3.7393,133.72,133.71,0.05201632]
[1725484689742,11.7593,133.72,133.71,0.05201632]
[1725484692252,3.7393,133.72,133.71,0.05201632]
[1725484692642,3.7391,133.73,133.71,0.05201632]
[1725484696942,3.78909174,133.74,133.71,3.79151632]
[1725484713959,0.05019174,133.74,133.71,0.05201632]
[1725484714162,0.05019174,133.74,133.72,8.02]
[1725484714557,0.05019174,133.74,133.73,3.739]
[1725484728477,0.05019174,133.74,133.71,0.05201632]
[1725484729377,3.78899174,133.74,133.71,3.79141632]
[1725484729878,3.739,133.73,133.71,0.05201632]
[1725484732676,0.05019174,133.74,133.71,0.05201632]
[1725484734381,0.05019174,133.74,133.72,3.7392]
[1725484740881,0.05019174,133.74,133.73,11.759]
[1725484741083,9.3719,133.81,133.73,8.02]
[1725484741289,3.7381,133.77,133.74,3.7386]
[1725484742192,0.0569875,133.77,133.75,3.7384]
[1725484744986,0.0569875,133.77,133.76,3.7382]
[1725484746081,0.0569875,133.77,133.76,11.7582]
[1725484750592,11.74112149,133.82,133.76,11.7582]
[1725484750893,24.74399579,133.86,133.81,8.02]
[1725484751289,24.6773528,133.86,133.82,3.7363]
[1725484751492,3.7356,133.86,133.82,3.7363]
[1725484751687,0.0537888,133.85,133.83,0.04748123]
[1725484752384,0.0537888,133.85,133.83,3.78358123]
[1725484756292,0.0537888,133.85,133.84,3.7359]
[1725484756795,8.02,133.92,133.84,8.02]
[1725484757000,8.02,133.93,133.86,8.02]
[1725484757294,8.02,133.93,133.84,1.4071]
[1725484757295,8.02,133.93,133.87,8.02]
[1725484757494,3.7339,133.92,133.89,3.7344]
[1725484757691,0.05447882,133.92,133.89,0.05317686]
[1725484759087,0.05447882,133.92,133.9,3.734]
[1725484761392,0.05447882,133.92,133.89,0.05317686]
[1725484761393,3.78827882,133.92,133.89,3.78767686]
[1725484761601,3.78827882,133.92,133.89,0.05317686]
[1725484763605,8.02,133.91,133.89,0.05317686]
[1725484763807,0.05447882,133.92,133.89,0.05317686]
[1725484763808,8.02,133.9,133.89,0.05317686]
[1725484765404,11.7543,133.9,133.89,0.05317686]
[1725484768910,3.7343,133.9,133.89,0.05317686]
[1725484794831,11.7543,133.9,133.89,0.05317686]
[1725484796433,30.46,133.9,133.81,1.3972]
[1725484796640,8.02,133.86,133.81,1.3972]
[1725484796827,8.02,133.86,133.81,5.1339]
[1725484796828,3.81023533,133.85,133.81,5.1339]
[1725484797534,0.04986593,133.84,133.82,0.04881772]
[1725484797734,3.78596593,133.84,133.82,0.04881772]
[1725484805632,3.7362,133.83,133.82,0.04881772]
[1725484823755,11.7562,133.83,133.82,0.04881772]
[1725484850378,11.7562,133.83,133.82,0.04881772]
[1725484860989,11.7562,133.83,133.75,1.415]
[1725484860990,30.45,133.83,133.75,1.415]
[1725484861184,8.02,133.78,133.75,1.415]
[1725484862089,11.81183209,133.78,133.75,5.20263406]
[1725484862991,8.07413209,133.78,133.75,0.04933406]
[1725484863689,11.86151247,133.78,133.75,0.04933406]
[1725484863890,3.7381,133.77,133.75,0.04933406]
[1725484865987,3.7379,133.77,133.75,0.04933406]
[1725484868492,3.7382,133.76,133.75,0.04933406]
[1725484871886,3.76338747,133.78,133.75,0.04933406]
[1725484872086,3.7381,133.77,133.75,0.04933406]
[1725484872386,11.78338747,133.78,133.75,0.04933406]
[1725484872595,8.02,133.77,133.75,0.04933406]
[1725484873793,3.7382,133.76,133.75,0.04933406]
[1725484886108,11.758,133.77,133.75,3.78773406]
[1725484886309,3.738,133.77,133.75,3.78773406]
[1725484890111,11.758,133.77,133.75,0.04933406]
[1725484894412,0.05413209,133.78,133.75,0.04933406]
[1725484894713,0.05413209,133.78,133.75,8.06933406]
[1725484895020,0.05413209,133.78,133.76,1.3131]
[1725484895409,0.05413209,133.78,133.77,3.7379]
[1725484917432,0.05413209,133.78,133.75,0.04933406]
[1725484917637,8.07413209,133.78,133.76,3.7379]
[1725484919147,11.81183209,133.78,133.76,3.7379]
[1725484919739,3.738,133.77,133.75,0.04933406]
[1725484920136,11.758,133.77,133.75,0.04933406]
[1725484921345,11.758,133.77,133.75,3.78773406]
[1725484927051,8.02,133.77,133.75,3.78773406]
[1725484928558,11.7579,133.77,133.75,3.78773406]
[1725484929047,3.7382,133.76,133.75,0.04933406]
[1725484931552,11.7582,133.76,133.75,0.04933406]
[1725484931747,3.7392,133.73,133.69,2.7514]
[1725484931944,11.7592,133.73,133.7,3.7397]
[1725484932745,11.8101687,133.73,133.7,3.78857786]
[1725484955879,0.0509687,133.73,133.71,3.7396]
[1725484958480,0.0509687,133.73,133.72,3.7393]
[1725484976888,0.0509687,133.73,133.72,11.7593]
[1725484978293,3.7374,133.79,133.76,3.7379]
[1725484979287,3.79372474,133.79,133.76,3.79361773]
[1725484999813,3.7376,133.78,133.76,3.79361773]
[1725485009917,3.7376,133.78,133.76,0.05571773]
[1725485013617,0.05632474,133.79,133.76,0.05571773]
[1725485014719,0.05632474,133.79,133.77,3.7378]
[1725485018229,3.79372474,133.79,133.77,3.7378]
[1725485018931,3.79372474,133.79,133.76,3.79381773]
[1725485020128,3.7377,133.78,133.76,3.79381773]
[1725485023730,3.7377,133.78,133.76,0.05571773]
[1725485030040,3.7379,133.77,133.76,0.05571773]
[1725485035039,12.9279,133.77,133.76,0.05571773]
[1725485035242,9.19,133.77,133.68,1.3994]
[1725485035437,9.19,133.73,133.68,1.3994]
[1725485035938,3.7395,133.72,133.69,5.066]
[1725485036141,3.79105616,133.72,133.69,5.11753957]
[1725485038046,3.79105616,133.72,133.69,3.79153957]
[1725485038346,0.05155616,133.72,133.69,0.05153957]
[1725485038547,9.24155616,133.72,133.69,0.05153957]
[1725485038935,3.7399,133.7,133.69,0.05153957]
[1725485043046,12.9299,133.7,133.69,0.05153957]
[1725485045047,3.7399,133.7,133.69,0.05153957]
[1725485045353,12.9299,133.7,133.69,0.05153957]
[1725485045954,3.7399,133.7,133.69,0.05153957]
[1725485046848,12.9299,133.7,133.69,0.05153957]
[1725485054560,3.7399,133.7,133.69,0.05153957]
[1725485054762,12.9299,133.7,133.69,0.05153957]
[1725485062565,3.7399,133.7,133.69,0.05153957]
[1725485062771,12.9299,133.7,133.69,0.05153957]
[1725485082096,3.7399,133.7,133.69,0.05153957]
[1725485082292,3.7397,133.71,133.69,0.05153957]
[1725485086401,3.7397,133.71,133.69,3.79153957]
[1725485091499,3.79095616,133.72,133.69,3.79153957]
[1725485095516,3.7396,133.71,133.69,3.79153957]
[1725485096617,3.7396,133.71,133.69,0.05153957]
[1725485096917,9.25155616,133.72,133.69,0.05153957]
[1725485098317,3.7399,133.7,133.69,0.05153957]
[1725485100614,12.9399,133.7,133.69,0.05153957]
[1725485100816,3.75196349,133.71,133.61,14.25252243]
[1725485101018,9.2,133.68,133.62,9.2]
[1725485101220,3.7409,133.67,133.63,3.78198413]
[1725485101415,9.2,133.66,133.61,108.84641889]
[1725485101621,9.2,133.68,133.62,9.2]
[1725485101820,0.05472419,133.66,133.64,0.04808506]
[1725485105021,22.43,133.75,133.64,9.24808506]
[1725485105222,9.2,133.71,133.64,9.2]
[1725485105421,9.2,133.71,133.65,10.6184]
[1725485105722,3.74,133.7,133.66,3.7408]
[1725485106023,0.0485835,133.69,133.67,0.04875492]
[1725485106222,0.0485835,133.69,133.67,3.78945492]
[1725485113826,0.0485835,133.69,133.67,7.4569695]
[1725485114625,0.0485835,133.69,133.67,3.78945492]
[1725485114831,3.7887835,133.69,133.67,0.04875492]
[1725485116723,3.7887835,133.69,133.67,3.78945492]
[1725485117733,3.7887835,133.69,133.67,0.04875492]
[1725485126136,3.7404,133.68,133.67,0.04875492]
[1725485127134,3.7888835,133.69,133.67,0.04875492]
[1725485144959,3.7888835,133.69,133.67,3.78935492]
[1725485147063,3.7888835,133.69,133.67,0.04875492]
[1725485156071,3.7404,133.68,133.67,0.04875492]
[1725485161772,3.7888835,133.69,133.67,0.04875492]
[1725485165266,0.0485835,133.69,133.68,9.19]
[1725485165469,3.9815,133.77,133.68,9.19]
[1725485165670,13.1715,133.77,133.71,9.19]
[1725485165978,13.1715,133.77,133.71,12.9294]
[1725485166372,0.05051416,133.75,133.73,0.05325032]
[1725485167375,3.78911416,133.75,133.73,0.05325032]
[1725485168195,0.05051416,133.75,133.73,3.79225032]
[1725485168365,0.05051416,133.75,133.73,9.24325032]
[1725485168775,0.05051416,133.75,133.74,3.7387]
[1725485191297,0.05051416,133.75,133.73,9.24325032]
[1725485191298,0.05051416,133.75,133.73,12.98215032]
[1725485191499,0.05051416,133.75,133.74,9.19]
[1725485192398,0.05051416,133.75,133.74,12.9287]
[1725485204197,0.05051416,133.75,133.73,0.05325032]
[1725485204198,3.7387,133.74,133.73,0.05325032]
[1725485216416,3.78921416,133.75,133.73,0.05325032]
[1725485217917,3.78921416,133.75,133.73,3.79225032]
[1725485218322,0.05051416,133.75,133.74,12.9287]
[1725485218523,0.05051416,133.75,133.74,16.64812344]
[1725485227924,3.7375,133.79,133.76,3.7381]
[1725485229029,3.79033201,133.79,133.76,3.78820217]
[1725485232538,3.7376,133.78,133.76,3.78820217]
[1725485243038,3.79033201,133.79,133.76,3.78820217]
[1725485247951,3.7376,133.78,133.76,3.78820217]
[1725485285879,0.05283201,133.79,133.77,3.7379]
[1725485287281,3.79023201,133.79,133.77,3.7379]
[1725485315008,3.79023201,133.79,133.76,108.08449418]
[1725485318102,3.79023201,133.79,133.77,3.7379]
[1725485319909,0.05283201,133.79,133.76,104.34649418]
[1725485320108,72.4419151,133.85,133.78,9.19]
[1725485320312,72.4419151,133.85,133.81,9.19]
[1725485320611,3.7367,133.82,133.81,9.19]
[1725485326112,0.05114623,133.83,133.81,9.19]
[1725485326413,0.05114623,133.83,133.82,12.99251158]
[1725485326616,0.05114623,133.83,133.82,16.72901158]
[1725485327715,3.7352,133.87,133.84,3.7359]
[1725485327912,3.7352,133.87,133.84,12.9259]
[1725485328508,3.7910057,133.87,133.84,12.98326499]
[1725485330318,0.0558057,133.87,133.85,3.7357]
[1725485334021,0.0558057,133.87,133.86,3.7354]
[1725485335211,3.7343,133.9,133.87,3.7349]
[1725485335413,9.19,133.93,133.87,9.19]
[1725485335923,9.19,133.93,133.88,3.7348]
[1725485335924,3.7342,133.91,133.88,3.7348]
[1725485336323,3.7904635,133.91,133.88,3.79191486]
[1725485336824,3.7343,133.9,133.88,3.79191486]
[1725485338320,3.7343,133.9,133.88,0.05711486]
[1725485340628,3.7343,133.9,133.88,3.79191486]
[1725485341124,3.7903635,133.91,133.88,3.79191486]
[1725485342919,3.7903635,133.91,133.89,12.9245]
[1725485343425,3.7903635,133.91,133.89,9.19]
[1725485344021,3.7903635,133.91,133.88,3.79181486]
[1725485344421,3.7903635,133.91,133.88,12.98181486]
[1725485355131,3.7343,133.9,133.88,12.98181486]
[1725485356331,3.7345,133.89,133.88,0.05711486]
[1725485358536,9.19,133.9,133.82,5.24061158]
[1725485358737,9.19,133.9,133.84,9.19]
[1725485359243,3.7354,133.86,133.83,3.736]
[1725485359446,3.78852597,133.86,133.84,9.19]
[1725485361339,3.78852597,133.86,133.83,3.78486187]
[1725485361843,3.78852597,133.86,133.84,9.19]
[1725485362637,3.78852597,133.86,133.84,12.9259]
[1725485363442,0.05312597,133.86,133.83,0.04886187]
[1725485364543,3.7359,133.84,133.83,0.04886187]
[1725485365742,3.737,133.81,133.77,3.7378]
[1725485365951,3.737,133.81,133.78,9.19]
[1725485366445,9.19,133.84,133.78,9.19]
[1725485366643,0.05689062,133.82,133.8,0.04995518]
[1725485367450,3.7369,133.81,133.8,0.04995518]
[1725485399275,12.9269,133.81,133.8,0.04995518]
[1725485399579,9.19,133.81,133.75,3.7382]
[1725485400069,3.7376,133.79,133.75,3.7382]
[1725485400276,3.77009345,133.8,133.75,3.7382]
[1725485400479,0.04830156,133.79,133.76,0.05141287]
[1725485400871,3.7377,133.78,133.76,0.05141287]
[1725485406481,0.04830156,133.79,133.76,3.78941287]
[1725485407292,3.7377,133.78,133.76,3.78941287]